[Event "Live Chess"]
[Site "Chess.com"]
[Date "2023.05.21"]
[Round "-"]
[White "viktorskliarov"]
[Black "OceanFloater"]
[Result "1-0"]
[WhiteElo "2628"]
[BlackElo "1048"]
[TimeControl "300"]
[EndTime "8:48:42 PDT"]
[Termination "viktorskliarov won by resignation"]

1. e4 {[%clk 0:04:57.3]} 1... c6 {[%clk 0:04:57.4]} 2. d4 {[%clk 0:04:54.3]}
2... d5 {[%clk 0:04:56.8]} 3. exd5 {[%clk 0:04:53.7]} 3... cxd5 {[%clk
0:04:56.1]} 4. Bd3 {[%clk 0:04:53.4]} 4... Nc6 {[%clk 0:04:52]} 5. c3 {[%clk
0:04:52.6]} 5... Nf6 {[%clk 0:04:43.7]} 6. Ne2 {[%clk 0:04:51.5]} 6... e5 {[%clk
0:04:41.3]} 7. dxe5 {[%clk 0:04:48.6]} 7... Nxe5 {[%clk 0:04:38.7]} 8. Bb5+
{[%clk 0:04:47.8]} 8... Bd7 {[%clk 0:04:35.9]} 9. Bxd7+ {[%clk 0:04:47]} 9...
Qxd7 {[%clk 0:04:35.3]} 10. O-O {[%clk 0:04:46.4]} 10... Rc8 {[%clk 0:04:30.1]}
11. Nd4 {[%clk 0:04:45.4]} 11... a6 {[%clk 0:04:24.8]} 12. Re1 {[%clk
0:04:42.7]} 12... Bd6 {[%clk 0:04:21.2]} 13. f4 {[%clk 0:04:41.2]} 13... Bc5
{[%clk 0:04:15]} 14. Rxe5+ {[%clk 0:04:38.9]} 14... Kd8 {[%clk 0:04:10.7]} 15.
Be3 {[%clk 0:04:34.2]} 15... Bxd4 {[%clk 0:04:06.8]} 16. Bxd4 {[%clk 0:04:32.8]}
16... Ne4 {[%clk 0:04:05.3]} 17. Nd2 {[%clk 0:04:30.9]} 17... f6 {[%clk
0:03:58.9]} 18. Bb6+ {[%clk 0:04:29.6]} 18... Rc7 {[%clk 0:03:55.8]} 19. Bxc7+
{[%clk 0:04:28.6]} 19... Kxc7 {[%clk 0:03:55.3]} 20. Rxe4 {[%clk 0:04:22.7]}
20... dxe4 {[%clk 0:03:53.9]} 21. Nxe4 {[%clk 0:04:22.3]} 21... f5 {[%clk
0:03:52.5]} 22. Qxd7+ {[%clk 0:04:20.6]} 22... Kxd7 {[%clk 0:03:50]} 23. Rd1+
{[%clk 0:04:20.4]} 23... Kc6 {[%clk 0:03:48.6]} 24. Ng3 {[%clk 0:04:18.4]} 24...
Re8 {[%clk 0:03:46.9]} 25. Kf2 {[%clk 0:04:17.8]} 25... h6 {[%clk 0:03:44.5]}
26. Nxf5 {[%clk 0:04:16.5]} 26... Re7 {[%clk 0:03:41.6]} 27. Nxe7+ {[%clk
0:04:15.7]} 1-0

[Event "Live Chess"]
[Site "Chess.com"]
[Date "2023.05.21"]
[Round "-"]
[White "yeetpizza74"]
[Black "ProfPoisson"]
[Result "0-1"]
[WhiteElo "497"]
[BlackElo "1208"]
[TimeControl "300"]
[EndTime "8:49:06 PDT"]
[Termination "ProfPoisson won by checkmate"]

1. e4 {[%clk 0:04:58.3]} 1... e5 {[%clk 0:04:57.7]} 2. Nf3 {[%clk 0:04:57.2]}
2... Nf6 {[%clk 0:04:55.6]} 3. Nc3 {[%clk 0:04:54.4]} 3... Nc6 {[%clk 0:04:53]}
4. Bc4 {[%clk 0:04:51.8]} 4... Nxe4 {[%clk 0:04:48.5]} 5. Nxe4 {[%clk
0:04:49.5]} 5... d5 {[%clk 0:04:46.9]} 6. Bd3 {[%clk 0:04:34.1]} 6... dxe4
{[%clk 0:04:45]} 7. Bxe4 {[%clk 0:04:33.2]} 7... f5 {[%clk 0:04:40.6]} 8. Bxc6+
{[%clk 0:04:29.1]} 8... bxc6 {[%clk 0:04:37]} 9. Nxe5 {[%clk 0:04:27]} 9... Qd6
{[%clk 0:04:29.3]} 10. d4 {[%clk 0:04:19.2]} 10... Ba6 {[%clk 0:04:25]} 11. Bf4
{[%clk 0:04:13.1]} 11... Qb4+ {[%clk 0:04:14.4]} 12. c3 {[%clk 0:04:11]} 12...
Qxb2 {[%clk 0:04:10.9]} 13. Nxc6 {[%clk 0:03:59]} 13... Qxc3+ {[%clk 0:04:07.5]}
14. Bd2 {[%clk 0:03:55.4]} 14... Qxc6 {[%clk 0:04:05.6]} 15. Rc1 {[%clk
0:03:52.6]} 15... Qxg2 {[%clk 0:04:01.7]} 16. Rxc7 {[%clk 0:03:45.9]} 16...
Qxh1# {[%clk 0:03:58.7]} 0-1

[Event "Live Chess"]
[Site "Chess.com"]
[Date "2023.05.21"]
[Round "-"]
[White "WilliamofOrange16th"]
[Black "Misha145Chess"]
[Result "1-0"]
[WhiteElo "1845"]
[BlackElo "621"]
[TimeControl "300"]
[EndTime "8:49:06 PDT"]
[Termination "WilliamofOrange16th won by checkmate"]

1. e4 {[%clk 0:04:54.4]} 1... e6 {[%clk 0:04:59.3]} 2. f4 {[%clk 0:04:51.3]}
2... d5 {[%clk 0:04:57.3]} 3. e5 {[%clk 0:04:50.4]} 3... Bb4 {[%clk 0:04:52.7]}
4. c3 {[%clk 0:04:48.9]} 4... Ba5 {[%clk 0:04:51.8]} 5. d4 {[%clk 0:04:48.8]}
5... Nc6 {[%clk 0:04:48.6]} 6. Nf3 {[%clk 0:04:48.7]} 6... f6 {[%clk 0:04:44.3]}
7. a4 {[%clk 0:04:47.4]} 7... fxe5 {[%clk 0:04:42.5]} 8. fxe5 {[%clk 0:04:46.6]}
8... Bd7 {[%clk 0:04:33.1]} 9. b4 {[%clk 0:04:45.6]} 9... Nxb4 {[%clk 0:04:25]}
10. cxb4 {[%clk 0:04:44.6]} 10... Bxb4+ {[%clk 0:04:24.9]} 11. Bd2 {[%clk
0:04:44.1]} 11... Bxd2+ {[%clk 0:04:19.4]} 12. Nbxd2 {[%clk 0:04:44]} 12... Qe7
{[%clk 0:04:11.4]} 13. Bb5 {[%clk 0:04:38.3]} 13... Bxb5 {[%clk 0:04:04.9]} 14.
axb5 {[%clk 0:04:37]} 14... O-O-O {[%clk 0:04:03.6]} 15. Rxa7 {[%clk 0:04:34.5]}
15... Qd7 {[%clk 0:03:57.6]} 16. Ra8# {[%clk 0:04:32.1]} 1-0

[Event "Live Chess"]
[Site "Chess.com"]
[Date "2023.05.21"]
[Round "-"]
[White "RichardABates"]
[Black "PiotrD11"]
[Result "1-0"]
[WhiteElo "2190"]
[BlackElo "1376"]
[TimeControl "300"]
[EndTime "8:49:11 PDT"]
[Termination "RichardABates won by checkmate"]

1. d4 {[%clk 0:04:59.4]} 1... d5 {[%clk 0:04:58.3]} 2. c4 {[%clk 0:04:58]} 2...
e5 {[%clk 0:04:56.6]} 3. dxe5 {[%clk 0:04:55.8]} 3... d4 {[%clk 0:04:56.5]} 4.
Nf3 {[%clk 0:04:54.5]} 4... Nc6 {[%clk 0:04:55.8]} 5. g3 {[%clk 0:04:53.6]} 5...
Nge7 {[%clk 0:04:54.8]} 6. Bg2 {[%clk 0:04:52.4]} 6... Ng6 {[%clk 0:04:54.4]} 7.
O-O {[%clk 0:04:50.1]} 7... Bc5 {[%clk 0:04:52.1]} 8. b4 {[%clk 0:04:47.7]} 8...
Bxb4 {[%clk 0:04:42.2]} 9. Qa4 {[%clk 0:04:45.3]} 9... O-O {[%clk 0:04:33]} 10.
Bb2 {[%clk 0:04:40.4]} 10... Bc5 {[%clk 0:04:23.9]} 11. Nbd2 {[%clk 0:04:36.7]}
11... Bd7 {[%clk 0:04:22.3]} 12. Qb3 {[%clk 0:04:22.4]} 12... Rb8 {[%clk
0:04:16.9]} 13. Ne4 {[%clk 0:04:20]} 13... Na5 {[%clk 0:04:05.7]} 14. Qc2 {[%clk
0:04:16.4]} 14... b6 {[%clk 0:03:50.2]} 15. Nxd4 {[%clk 0:04:06.5]} 15... Bxd4
{[%clk 0:03:47.7]} 16. Bxd4 {[%clk 0:04:05.1]} 16... Be6 {[%clk 0:03:46]} 17.
Bc3 {[%clk 0:04:02.7]} 17... Nxc4 {[%clk 0:03:36.4]} 18. Rad1 {[%clk 0:03:58.8]}
18... Qe7 {[%clk 0:03:30.8]} 19. h4 {[%clk 0:03:50.8]} 19... Ncxe5 {[%clk
0:03:18.2]} 20. h5 {[%clk 0:03:48.5]} 20... Nh4 {[%clk 0:02:54.7]} 21. gxh4
{[%clk 0:03:29]} 21... Bf5 {[%clk 0:02:52.1]} 22. Bxe5 {[%clk 0:03:12.5]} 22...
Qxe5 {[%clk 0:02:49.3]} 23. Qc3 {[%clk 0:03:09.1]} 23... Qe6 {[%clk 0:02:26]}
24. Ng3 {[%clk 0:02:59.2]} 24... Bg4 {[%clk 0:02:16.2]} 25. Rd4 {[%clk
0:02:52.9]} 25... Bxe2 {[%clk 0:02:11.1]} 26. Re4 {[%clk 0:02:47]} 26... Qxa2
{[%clk 0:02:09.1]} 27. Rxe2 {[%clk 0:02:45]} 27... Qa5 {[%clk 0:02:01.1]} 28.
Qb2 {[%clk 0:02:39.6]} 28... c5 {[%clk 0:01:58.6]} 29. Nf5 {[%clk 0:02:37.2]}
29... f6 {[%clk 0:01:49.8]} 30. Re7 {[%clk 0:02:34.6]} 30... Rf7 {[%clk
0:01:47.9]} 31. Rxf7 {[%clk 0:02:26.9]} 31... Kxf7 {[%clk 0:01:46.3]} 32. Qe2
{[%clk 0:02:25.3]} 32... Qc3 {[%clk 0:01:31.2]} 33. Qe7+ {[%clk 0:02:22.9]}
33... Kg8 {[%clk 0:01:29.8]} 34. Qxg7# {[%clk 0:02:21.8]} 1-0

[Event "Live Chess"]
[Site "Chess.com"]
[Date "2023.05.21"]
[Round "-"]
[White "LiamClery2020"]
[Black "HoarseyHorsey"]
[Result "1-0"]
[WhiteElo "1996"]
[BlackElo "1467"]
[TimeControl "300"]
[EndTime "8:49:14 PDT"]
[Termination "LiamClery2020 won by resignation"]

1. e4 {[%clk 0:04:59.8]} 1... c5 {[%clk 0:04:58.8]} 2. Nf3 {[%clk 0:04:57.8]}
2... e6 {[%clk 0:04:58.3]} 3. c3 {[%clk 0:04:57]} 3... d5 {[%clk 0:04:56.8]} 4.
e5 {[%clk 0:04:55.9]} 4... Nc6 {[%clk 0:04:55.8]} 5. d4 {[%clk 0:04:55.3]} 5...
Bd7 {[%clk 0:04:50.7]} 6. Bd3 {[%clk 0:04:47.5]} 6... cxd4 {[%clk 0:04:49.2]} 7.
cxd4 {[%clk 0:04:46.7]} 7... Qb6 {[%clk 0:04:47.4]} 8. Nc3 {[%clk 0:04:45.4]}
8... a6 {[%clk 0:04:45.7]} 9. Bc2 {[%clk 0:04:39.8]} 9... Nb4 {[%clk 0:04:21.5]}
10. Bb1 {[%clk 0:04:36.2]} 10... Ne7 {[%clk 0:04:17.2]} 11. a3 {[%clk
0:04:35.3]} 11... Nbc6 {[%clk 0:04:15.3]} 12. O-O {[%clk 0:04:31.5]} 12... Rc8
{[%clk 0:04:07]} 13. Ng5 {[%clk 0:04:30.5]} 13... Ng6 {[%clk 0:04:05.7]} 14. Qf3
{[%clk 0:04:26.3]} 14... Ngxe5 {[%clk 0:03:47.2]} 15. dxe5 {[%clk 0:04:23.4]}
15... Nxe5 {[%clk 0:03:46.5]} 16. Qg3 {[%clk 0:04:22.5]} 16... Bd6 {[%clk
0:03:41.4]} 17. Be3 {[%clk 0:04:21.1]} 17... O-O {[%clk 0:03:37.7]} 18. Bxb6
{[%clk 0:04:19.9]} 1-0

[Event "Live Chess"]
[Site "Chess.com"]
[Date "2023.05.21"]
[Round "-"]
[White "Grookey2012"]
[Black "PaulyD81"]
[Result "1/2-1/2"]
[WhiteElo "575"]
[BlackElo "1087"]
[TimeControl "300"]
[EndTime "8:49:16 PDT"]
[Termination "Game drawn by stalemate"]

1. e4 {[%clk 0:04:57.4]} 1... d5 {[%clk 0:04:57]} 2. Nc3 {[%clk 0:04:52.6]} 2...
dxe4 {[%clk 0:04:55.1]} 3. Nxe4 {[%clk 0:04:52.5]} 3... Qd5 {[%clk 0:04:42.9]}
4. Qf3 {[%clk 0:04:50.1]} 4... Bf5 {[%clk 0:04:35.7]} 5. Nf6+ {[%clk 0:04:46.7]}
5... Nxf6 {[%clk 0:04:30]} 6. Qxd5 {[%clk 0:04:46.6]} 6... Nxd5 {[%clk
0:04:21.2]} 7. Bb5+ {[%clk 0:04:43.1]} 7... Nc6 {[%clk 0:04:12.3]} 8. Bxc6+
{[%clk 0:04:41]} 8... bxc6 {[%clk 0:04:10.1]} 9. c4 {[%clk 0:04:40.9]} 9... Nf6
{[%clk 0:03:54.9]} 10. Nf3 {[%clk 0:04:35.1]} 10... e6 {[%clk 0:03:48]} 11. Ne5
{[%clk 0:04:35]} 11... c5 {[%clk 0:03:31.3]} 12. Nxf7 {[%clk 0:04:34.9]} 12...
Kxf7 {[%clk 0:03:27.5]} 13. d4 {[%clk 0:04:34.8]} 13... cxd4 {[%clk 0:03:17.3]}
14. Bf4 {[%clk 0:04:32]} 14... Bd6 {[%clk 0:03:09]} 15. Be5 {[%clk 0:04:31.9]}
15... Bxe5 {[%clk 0:03:07.1]} 16. O-O {[%clk 0:04:31.8]} 16... c5 {[%clk
0:02:53.5]} 17. Rad1 {[%clk 0:04:31.7]} 17... Rhd8 {[%clk 0:02:47.2]} 18. f4
{[%clk 0:04:31.6]} 18... Bc7 {[%clk 0:02:28.2]} 19. Rf3 {[%clk 0:04:31.5]} 19...
Bg4 {[%clk 0:02:10.4]} 20. Rdf1 {[%clk 0:04:31.4]} 20... Bxf3 {[%clk 0:02:09.1]}
21. b3 {[%clk 0:04:31.3]} 21... Be4 {[%clk 0:01:56.8]} 22. a4 {[%clk 0:04:31.2]}
22... a5 {[%clk 0:01:45.2]} 23. b4 {[%clk 0:04:20]} 23... axb4 {[%clk
0:01:41.4]} 24. f5 {[%clk 0:04:19.9]} 24... e5 {[%clk 0:01:34.4]} 25. a5 {[%clk
0:04:06.6]} 25... Rxa5 {[%clk 0:01:33.2]} 26. Kh1 {[%clk 0:04:03.7]} 26... Ra2
{[%clk 0:01:31.8]} 27. Kg1 {[%clk 0:04:03.6]} 27... d3 {[%clk 0:01:30.6]} 28.
Kh1 {[%clk 0:04:03.5]} 28... d2 {[%clk 0:01:29.6]} 29. Kg1 {[%clk 0:04:03.4]}
29... Rc2 {[%clk 0:01:27.4]} 30. Kh1 {[%clk 0:04:03.3]} 30... Rc1 {[%clk
0:01:25.4]} 31. Kg1 {[%clk 0:04:03.2]} 31... Rxf1+ {[%clk 0:01:23.8]} 32. Kxf1
{[%clk 0:04:02.3]} 32... d1=Q+ {[%clk 0:01:22.9]} 33. Kf2 {[%clk 0:04:02.2]}
33... Rd2+ {[%clk 0:01:20.6]} 34. Kg3 {[%clk 0:04:01.1]} 34... Qf1 {[%clk
0:01:14.8]} 35. Kh4 {[%clk 0:04:00.8]} 35... Qxg2 {[%clk 0:01:13.9]} 36. h3
{[%clk 0:03:54.8]} 36... Bf3 {[%clk 0:01:11]} 1/2-1/2

[Event "Live Chess"]
[Site "Chess.com"]
[Date "2023.05.21"]
[Round "-"]
[White "friarnator"]
[Black "yarek"]
[Result "1-0"]
[WhiteElo "2034"]
[BlackElo "1855"]
[TimeControl "300"]
[EndTime "8:49:23 PDT"]
[Termination "friarnator won by resignation"]

1. d4 {[%clk 0:04:56.8]} 1... g6 {[%clk 0:04:59.9]} 2. h4 {[%clk 0:04:54.4]}
2... Bg7 {[%clk 0:04:59.8]} 3. h5 {[%clk 0:04:53.4]} 3... d5 {[%clk 0:04:51]} 4.
h6 {[%clk 0:04:50.9]} 4... Bf8 {[%clk 0:04:43.1]} 5. Nf3 {[%clk 0:04:49.9]} 5...
Nf6 {[%clk 0:04:41.9]} 6. c3 {[%clk 0:04:46]} 6... Bf5 {[%clk 0:04:35.5]} 7. Qb3
{[%clk 0:04:42.5]} 7... b6 {[%clk 0:04:26.3]} 8. Bg5 {[%clk 0:04:33.9]} 8... Ne4
{[%clk 0:04:13.1]} 9. Bf4 {[%clk 0:04:25.7]} 9... Nc6 {[%clk 0:03:43.1]} 10. e3
{[%clk 0:04:15.4]} 10... e6 {[%clk 0:03:27.7]} 11. Bb5 {[%clk 0:04:12.8]} 11...
Rb8 {[%clk 0:01:52.9]} 12. Bxc6+ {[%clk 0:04:07.7]} 12... Ke7 {[%clk 0:01:52.4]}
13. Nbd2 {[%clk 0:03:37.4]} 13... f6 {[%clk 0:01:45.1]} 14. Nxe4 {[%clk
0:03:34.9]} 14... Bxe4 {[%clk 0:01:42.6]} 15. Qa3+ {[%clk 0:03:29.1]} 15... Kf7
{[%clk 0:01:41]} 16. Qxa7 {[%clk 0:03:26.8]} 16... Bd6 {[%clk 0:01:33.7]} 17.
Bxd6 {[%clk 0:03:22.1]} 17... Qxd6 {[%clk 0:01:31.8]} 18. Qa4 {[%clk 0:03:20.5]}
18... e5 {[%clk 0:01:16.7]} 19. dxe5 {[%clk 0:03:17.3]} 19... fxe5 {[%clk
0:01:14.6]} 20. Ng5+ {[%clk 0:03:14.4]} 20... Ke7 {[%clk 0:01:10.5]} 21. Nxe4
{[%clk 0:03:12.1]} 21... dxe4 {[%clk 0:01:08.7]} 22. Qxe4 {[%clk 0:03:08]} 22...
Rhf8 {[%clk 0:01:03.9]} 23. Rd1 {[%clk 0:03:05.9]} 23... Qf6 {[%clk 0:01:01.7]}
24. Rd7+ {[%clk 0:03:00.2]} 24... Ke8 {[%clk 0:00:56.6]} 25. Rd6+ {[%clk
0:02:49.8]} 1-0

[Event "Live Chess"]
[Site "Chess.com"]
[Date "2023.05.21"]
[Round "-"]
[White "stevochess11"]
[Black "OleksiyJr1"]
[Result "1-0"]
[WhiteElo "1659"]
[BlackElo "1046"]
[TimeControl "300"]
[EndTime "8:49:33 PDT"]
[Termination "stevochess11 won by resignation"]

1. e4 {[%clk 0:04:57.3]} 1... c5 {[%clk 0:04:56.8]} 2. c3 {[%clk 0:04:54.3]}
2... Nc6 {[%clk 0:04:56.3]} 3. d3 {[%clk 0:04:52.1]} 3... d6 {[%clk 0:04:55]} 4.
f3 {[%clk 0:04:51.4]} 4... e5 {[%clk 0:04:54.1]} 5. g3 {[%clk 0:04:51.3]} 5...
Nf6 {[%clk 0:04:53.1]} 6. Nh3 {[%clk 0:04:50.7]} 6... g6 {[%clk 0:04:52]} 7. Bg2
{[%clk 0:04:49.9]} 7... Bg7 {[%clk 0:04:49.1]} 8. O-O {[%clk 0:04:49.5]} 8...
Bxh3 {[%clk 0:04:48]} 9. Bxh3 {[%clk 0:04:48.1]} 9... O-O {[%clk 0:04:45.8]} 10.
Be3 {[%clk 0:04:45.4]} 10... b5 {[%clk 0:04:42.8]} 11. Nd2 {[%clk 0:04:43.6]}
11... Qb6 {[%clk 0:04:40.9]} 12. f4 {[%clk 0:04:38.6]} 12... b4 {[%clk 0:04:37]}
13. f5 {[%clk 0:04:36]} 13... bxc3 {[%clk 0:04:34.2]} 14. bxc3 {[%clk
0:04:35.9]} 14... Qa6 {[%clk 0:04:19.6]} 15. Nf3 {[%clk 0:04:30]} 15... Rab8
{[%clk 0:04:17.4]} 16. Nh4 {[%clk 0:04:08.6]} 16... Qa3 {[%clk 0:04:02.4]} 17.
fxg6 {[%clk 0:03:58.9]} 17... fxg6 {[%clk 0:03:59.7]} 18. Be6+ {[%clk
0:03:54.3]} 18... Kh8 {[%clk 0:03:54.4]} 19. Qd2 {[%clk 0:03:50.9]} 19... Rb2
{[%clk 0:03:49.2]} 20. Qc1 {[%clk 0:03:44.4]} 20... Rfb8 {[%clk 0:03:39.6]} 21.
Bh6 {[%clk 0:03:35.7]} 21... Nd8 {[%clk 0:03:28.1]} 22. Bxg7+ {[%clk 0:03:27.3]}
22... Kxg7 {[%clk 0:03:26.5]} 23. Qg5 {[%clk 0:03:21.7]} 23... Nxe6 {[%clk
0:03:03.1]} 24. Qxf6+ {[%clk 0:03:18.9]} 24... Kg8 {[%clk 0:03:01.8]} 25. Qf7+
{[%clk 0:03:15.6]} 25... Kh8 {[%clk 0:03:00.2]} 26. Qxe6 {[%clk 0:03:08.8]}
26... Qxc3 {[%clk 0:02:48]} 27. Qf6+ {[%clk 0:02:58.4]} 27... Kg8 {[%clk
0:02:45.8]} 28. Nf3 {[%clk 0:02:50.9]} 28... Rf8 {[%clk 0:02:40.6]} 29. Qe6+
{[%clk 0:02:47.5]} 29... Kg7 {[%clk 0:02:37.8]} 30. Ng5 {[%clk 0:02:42.8]} 30...
Qd4+ {[%clk 0:02:30.8]} 31. Kh1 {[%clk 0:02:38.3]} 31... Rbf2 {[%clk 0:01:57.5]}
32. Rxf2 {[%clk 0:02:31.9]} 32... Qxf2 {[%clk 0:01:55.3]} 33. Qh3 {[%clk
0:02:15]} 33... h5 {[%clk 0:01:37.2]} 34. Ne6+ {[%clk 0:02:11.5]} 34... Kf6
{[%clk 0:01:34.5]} 35. Rf1 {[%clk 0:02:06.4]} 35... Qxf1+ {[%clk 0:01:30.5]} 36.
Qxf1+ {[%clk 0:02:04.9]} 36... Kxe6 {[%clk 0:01:26.7]} 37. Qxf8 {[%clk
0:02:03.5]} 37... d5 {[%clk 0:01:26.6]} 38. exd5+ {[%clk 0:02:01.6]} 38... Kxd5
{[%clk 0:01:26.5]} 39. Qd8+ {[%clk 0:01:58.9]} 39... Ke6 {[%clk 0:01:25.1]} 40.
Kg2 {[%clk 0:01:58.1]} 40... Kf5 {[%clk 0:01:24.6]} 41. Kf3 {[%clk 0:01:57]}
41... e4+ {[%clk 0:01:24.5]} 42. dxe4+ {[%clk 0:01:55.8]} 42... Ke5 {[%clk
0:01:23.8]} 43. Qd5+ {[%clk 0:01:54.2]} 1-0

[Event "Live Chess"]
[Site "Chess.com"]
[Date "2023.05.21"]
[Round "-"]
[White "garyjc"]
[Black "Cimon"]
[Result "0-1"]
[WhiteElo "1075"]
[BlackElo "1847"]
[TimeControl "300"]
[EndTime "8:49:33 PDT"]
[Termination "Cimon won by resignation"]

1. e4 {[%clk 0:04:57.5]} 1... d5 {[%clk 0:04:58.6]} 2. exd5 {[%clk 0:04:55.9]}
2... Qxd5 {[%clk 0:04:57.4]} 3. Nc3 {[%clk 0:04:55.1]} 3... Qd6 {[%clk
0:04:56.3]} 4. Nf3 {[%clk 0:04:52.4]} 4... Nf6 {[%clk 0:04:55]} 5. Nb5 {[%clk
0:04:44.8]} 5... Qd7 {[%clk 0:04:53.4]} 6. Ne5 {[%clk 0:04:32.1]} 6... Qd8
{[%clk 0:04:51.9]} 7. Bc4 {[%clk 0:04:17.1]} 7... e6 {[%clk 0:04:49.2]} 8. d4
{[%clk 0:04:01.7]} 8... a6 {[%clk 0:04:47.4]} 9. Nc3 {[%clk 0:03:57]} 9... Bd6
{[%clk 0:04:42.3]} 10. O-O {[%clk 0:03:46.8]} 10... O-O {[%clk 0:04:39.9]} 11.
Bf4 {[%clk 0:03:20]} 11... b5 {[%clk 0:04:34.4]} 12. Bd3 {[%clk 0:03:12.6]}
12... Bb7 {[%clk 0:04:32]} 13. Re1 {[%clk 0:03:09]} 13... Nbd7 {[%clk
0:04:27.4]} 14. Ne4 {[%clk 0:03:06]} 14... Nxe4 {[%clk 0:04:23.6]} 15. Bxe4
{[%clk 0:03:05]} 15... Bxe4 {[%clk 0:04:21.4]} 16. Rxe4 {[%clk 0:03:03.2]} 16...
Nf6 {[%clk 0:04:12.3]} 17. Re1 {[%clk 0:02:53.4]} 17... c5 {[%clk 0:04:09.2]}
18. Nc6 {[%clk 0:02:47.2]} 18... Qc7 {[%clk 0:04:05.1]} 19. Bxd6 {[%clk
0:02:40.9]} 19... Qxd6 {[%clk 0:04:03.5]} 20. Ne5 {[%clk 0:02:35.2]} 20... cxd4
{[%clk 0:04:00.7]} 21. c3 {[%clk 0:02:28.6]} 21... Rfd8 {[%clk 0:03:57.1]} 22.
cxd4 {[%clk 0:02:24.8]} 22... Qxd4 {[%clk 0:03:55.6]} 23. Qxd4 {[%clk 0:02:07]}
23... Rxd4 {[%clk 0:03:53.3]} 24. Nc6 {[%clk 0:02:03.1]} 24... Rc4 {[%clk
0:03:50.8]} 25. Ne7+ {[%clk 0:01:57.3]} 25... Kf8 {[%clk 0:03:48.8]} 26. Rac1
{[%clk 0:01:35.1]} 26... Kxe7 {[%clk 0:03:46.9]} 27. Rxc4 {[%clk 0:01:33.1]}
27... bxc4 {[%clk 0:03:45.9]} 28. Rc1 {[%clk 0:01:28.7]} 28... Rc8 {[%clk
0:03:43.6]} 29. b3 {[%clk 0:01:23.4]} 29... c3 {[%clk 0:03:41.6]} 0-1

[Event "Live Chess"]
[Site "Chess.com"]
[Date "2023.05.21"]
[Round "-"]
[White "ramses-IIG"]
[Black "lateforthesky"]
[Result "0-1"]
[WhiteElo "854"]
[BlackElo "2074"]
[TimeControl "300"]
[EndTime "8:49:35 PDT"]
[Termination "lateforthesky won by checkmate"]

1. e4 {[%clk 0:04:58.2]} 1... c5 {[%clk 0:04:58.5]} 2. Nf3 {[%clk 0:04:58.1]}
2... Nf6 {[%clk 0:04:55.7]} 3. Bc4 {[%clk 0:04:57.6]} 3... e6 {[%clk 0:04:52.8]}
4. d3 {[%clk 0:04:56.6]} 4... Nc6 {[%clk 0:04:49.8]} 5. c3 {[%clk 0:04:56]} 5...
d6 {[%clk 0:04:47.8]} 6. Bg5 {[%clk 0:04:51.2]} 6... Be7 {[%clk 0:04:46.9]} 7.
O-O {[%clk 0:04:49]} 7... h6 {[%clk 0:04:45.3]} 8. Bxf6 {[%clk 0:04:47.4]} 8...
Bxf6 {[%clk 0:04:44]} 9. d4 {[%clk 0:04:44.8]} 9... cxd4 {[%clk 0:04:35.8]} 10.
cxd4 {[%clk 0:04:44.7]} 10... d5 {[%clk 0:04:35.1]} 11. e5 {[%clk 0:04:43.1]}
11... dxc4 {[%clk 0:04:31.7]} 12. exf6 {[%clk 0:04:41.5]} 12... Qxf6 {[%clk
0:04:30.9]} 13. Nc3 {[%clk 0:04:35.7]} 13... O-O {[%clk 0:04:28.2]} 14. Nb5
{[%clk 0:04:34.5]} 14... Bd7 {[%clk 0:04:16.1]} 15. Nd6 {[%clk 0:04:32.9]} 15...
Rab8 {[%clk 0:04:05.1]} 16. Nxc4 {[%clk 0:04:25.5]} 16... Rfd8 {[%clk
0:03:57.4]} 17. Nce5 {[%clk 0:04:18.4]} 17... Be8 {[%clk 0:03:51.4]} 18. Nxc6
{[%clk 0:04:04.8]} 18... Bxc6 {[%clk 0:03:49.3]} 19. Rc1 {[%clk 0:03:41.9]}
19... Bxf3 {[%clk 0:03:39.6]} 20. Qxf3 {[%clk 0:03:41.8]} 20... Qxf3 {[%clk
0:03:38.1]} 21. gxf3 {[%clk 0:03:41.7]} 21... Rxd4 {[%clk 0:03:37.1]} 22. Kg2
{[%clk 0:03:39.7]} 22... Rd2 {[%clk 0:03:35.4]} 23. Rb1 {[%clk 0:03:36.8]} 23...
Rc8 {[%clk 0:03:33.4]} 24. a3 {[%clk 0:03:31.3]} 24... a5 {[%clk 0:03:16.7]} 25.
b4 {[%clk 0:03:28.9]} 25... a4 {[%clk 0:03:16]} 26. b5 {[%clk 0:03:26.5]} 26...
Rc3 {[%clk 0:03:13.4]} 27. Rfc1 {[%clk 0:03:24.1]} 27... Rxa3 {[%clk 0:03:07]}
28. Rc7 {[%clk 0:03:17]} 28... Raa2 {[%clk 0:03:05.1]} 29. Rxb7 {[%clk
0:03:14.7]} 29... Rxf2+ {[%clk 0:03:03.4]} 30. Kg3 {[%clk 0:03:11.3]} 30... a3
{[%clk 0:02:56.6]} 31. Ra7 {[%clk 0:03:09.9]} 31... Rfb2 {[%clk 0:02:46.7]} 32.
Rxb2 {[%clk 0:03:07.2]} 32... axb2 {[%clk 0:02:44.7]} 33. b6 {[%clk 0:03:04.4]}
33... b1=Q {[%clk 0:02:41.1]} 34. b7 {[%clk 0:03:03.4]} 34... Rb2 {[%clk
0:02:38.3]} 35. Ra8+ {[%clk 0:03:01.4]} 35... Kh7 {[%clk 0:02:36.7]} 36. b8=N
{[%clk 0:02:46.7]} 36... Qg6+ {[%clk 0:02:25.6]} 37. Kh3 {[%clk 0:02:44.1]}
37... Qg2+ {[%clk 0:02:21.6]} 38. Kh4 {[%clk 0:02:43]} 38... g5+ {[%clk
0:02:20.1]} 39. Kh5 {[%clk 0:02:40.3]} 39... Qh3# {[%clk 0:02:18.9]} 0-1

[Event "Live Chess"]
[Site "Chess.com"]
[Date "2023.05.21"]
[Round "-"]
[White "Ocelot32"]
[Black "Dhaydon19"]
[Result "0-1"]
[WhiteElo "1432"]
[BlackElo "2692"]
[TimeControl "300"]
[EndTime "8:49:47 PDT"]
[Termination "Dhaydon19 won by resignation"]

1. e4 {[%clk 0:04:58.1]} 1... c6 {[%clk 0:04:59.3]} 2. Nf3 {[%clk 0:04:54.5]}
2... d5 {[%clk 0:04:58.9]} 3. Nc3 {[%clk 0:04:53.7]} 3... Bg4 {[%clk 0:04:57.7]}
4. h3 {[%clk 0:04:51.6]} 4... Bxf3 {[%clk 0:04:56.7]} 5. Qxf3 {[%clk 0:04:50.9]}
5... e6 {[%clk 0:04:56.4]} 6. exd5 {[%clk 0:04:49]} 6... cxd5 {[%clk 0:04:55.4]}
7. d4 {[%clk 0:04:48.5]} 7... Nc6 {[%clk 0:04:54.8]} 8. Bd3 {[%clk 0:04:47.5]}
8... Nxd4 {[%clk 0:04:53.5]} 9. Qg3 {[%clk 0:04:41.5]} 9... Nc6 {[%clk
0:04:52.2]} 10. O-O {[%clk 0:04:40]} 10... a6 {[%clk 0:04:51.1]} 11. Be3 {[%clk
0:04:34.2]} 11... d4 {[%clk 0:04:49.4]} 12. Bxd4 {[%clk 0:04:29.9]} 12... Qxd4
{[%clk 0:04:47.4]} 13. Rfe1 {[%clk 0:04:26.9]} 13... Nf6 {[%clk 0:04:45.8]} 14.
Rad1 {[%clk 0:04:19.6]} 14... Qb6 {[%clk 0:04:44.1]} 15. Bc4 {[%clk 0:04:01.1]}
15... Rd8 {[%clk 0:04:35]} 16. Qe3 {[%clk 0:03:27.7]} 16... Qxe3 {[%clk
0:04:32]} 17. Rxd8+ {[%clk 0:03:25.9]} 17... Kxd8 {[%clk 0:04:30.7]} 18. Rxe3
{[%clk 0:03:24.5]} 18... Bc5 {[%clk 0:04:30.4]} 19. Rd3+ {[%clk 0:03:22.1]}
19... Ke7 {[%clk 0:04:29.5]} 20. Ne2 {[%clk 0:03:14]} 20... Ne5 {[%clk
0:04:28.3]} 21. Rc3 {[%clk 0:03:11.6]} 21... Bxf2+ {[%clk 0:04:24.3]} 22. Kf1
{[%clk 0:03:02.6]} 22... Ne4 {[%clk 0:04:23.1]} 23. Rb3 {[%clk 0:02:58.9]} 23...
Nd2+ {[%clk 0:04:20.1]} 24. Kxf2 {[%clk 0:02:56.8]} 24... Nxb3 {[%clk
0:04:19.7]} 0-1